{"text_format":"1","workbook":"xlsx","n_sheets":13,"sheets":["Przegląd arkuszy","Info","Oś czasu projektu","Postęp etapów","Plan komunikacji","Wykonanie budżetu","Monitoring","Dziennik","Lista ryzyk","Lista zmian","Zadania do wykonania","Zagadnienia projektowe","Aktualizacje"],"not_rendered":{"charts":2,"images":2,"macros":1,"external_links":3,"defined_names":107,"comments":5,"pivot_tables":0},"unopened":[],"bounds":{"document_bytes":16777216,"sheet_cells":100000,"rows_first":2000,"rows_last":500,"rows_between":2000,"halvings":0,"cell_chars":16384,"cell_head_chars":4096},"cells_cut":0,"cells_raw":0,"read":"whole","date_system":"1900"}

{"sheet":"Przegląd arkuszy","index":0,"n_rows":18,"n_cols":4,"rows_kept":18,"cut":false,"hidden":false,"merged":[]}
[null,"Przegląd dokumentów"]
[]
[null,"Projekt","OZP","Zakres dokumentu"]
[null,"Komitet Sterujacy",null,"Skład Komitetu Sterującego."]
[null,"Interesariusze",null,"Interesariusze projketu."]
[null,"Zespół wdrożeniowy",null,"Zespół odpowiedzialny za wdrożenie projektu."]
[null,"Cele projektu",null,"Cele strategiczne oraz biznesowe projektu."]
[null,"Oś czasu projektu",null,"Kamienie milowe w projekcie."]
[null,"Postęp prac w projekcie",null,"Procentowy postęp prac w poszczególnych etapach projketu."]
[null,"Plan komunikacji",null,"Macierz określająca kategorie informacji wraz ze wskazaniem osób zainteresowanych otrzymywaniem tych informacji oraz sposobem jej przekazywania w ustalonym cyklu."]
[null,"Wykonanie bużdetu",null,"Informacja o wykonaniu budżetu."]
[null,"Monitoring",null,"Odchylenie harmonogramu."]
[null,"Dziennik",null,"Podsumowanie prac w projekcie w cyklu tygodniowym."]
[null,"Lista ryzyk",null,"Ryzyka zewnetrzne oraz wewnętrzne zidentyfikowane w projekcie wraz z informacją o reakcji na ryzyko."]
[null,"Lista zmian",null,"Zgłoszone zmiany oraz rozszerzenia zakresu wraz z informacją o wpływie na czas i koszt."]
[null,"Zadania do wykonania",null,"Lista zadań do wykonania przez wskazanych Interesariuszy projektu wraz z informacją o statusie zadania."]
[null,"Zagadnienia projektowe",null,"Opis zdarzeń w projekcie, które wymagają rozwiązania. Mogą wpłynąć na czas, koszt, jakość, zakres, ryzyko."]
[null,"Aktualizacje",null,"Opis zmian wprowadzonych do kolejnych aktualizacji pliku \"Dziennik Projektu\""]

{"sheet":"Info","index":1,"n_rows":31,"n_cols":10,"rows_kept":31,"cut":false,"hidden":false,"merged":[[26,4,26,7],[28,4,28,7],[29,4,29,7],[30,4,30,7],[26,1,26,3],[27,1,27,3],[28,1,28,3],[29,1,29,3],[30,1,30,3],[20,1,20,3],[20,4,20,7],[21,4,21,7],[21,1,21,3],[25,1,25,3],[22,4,22,7],[23,1,23,3],[23,4,23,7],[24,1,24,3],[24,4,24,7],[22,1,22,3],[25,4,25,7],[17,1,17,7],[18,1,18,3],[18,4,18,7],[19,1,19,3],[19,4,19,7],[14,1,14,3],[14,4,14,7],[15,1,15,3],[15,4,15,7],[11,4,11,7],[12,4,12,7],[13,4,13,7],[8,1,8,3],[8,4,8,7],[9,1,9,3],[9,4,9,7],[11,1,11,3],[10,4,10,7],[10,1,10,3],[4,1,4,3],[4,4,4,7],[5,1,5,3],[5,4,5,7],[7,1,7,7],[1,1,1,7],[2,1,2,3],[2,4,2,7],[3,1,3,3],[3,4,3,7],[10,10,10,17],[11,10,11,17],[1,9,1,17],[3,10,3,17],[4,10,4,17],[7,9,7,17],[9,10,9,17],[8,9,8,17],[2,9,2,17]]}
[null,"Info"]
[null,"KOMITET STERUJĄCY",null,null,null,null,null,null,null,"CEL STRATEGICZNY PROJEKTU"]
[null,"IMIĘ I NAZWISKO",null,null,"FUNKCJA",null,null,null,null,"Lp."]
[null,"Jan Kowalski",null,null,"Członek Zarządu po stronie Zamawiajacego",null,null,null,null,1]
[null,null,null,null,null,null,null,null,null,2]
[null,null,null,null,null,null,null,null,null,3]
[]
[null,"INTERESARIUSZE",null,null,null,null,null,null,null,"CEL BIZNESOWY PROJEKTU"]
[null,"KOMÓRKA ORGANIZACYJNA / GRUPA ODBIORCÓW",null,null,"PRZEDSTAWICIELE (IMIĘ I NAZWISKO)",null,null,null,null,"Lp. "]
[null,"Dział Sprzedaży",null,null,"Jan Nowak",null,null,null,null,1]
[null,"Interesariusz 2",null,null,null,null,null,null,null,2]
[null,"Interesariusz 3",null,null,null,null,null,null,null,3]
[null,"Interesariusz 4"]
[]
[]
[]
[]
[null,"ZESPÓŁ WDROŻENIOWY"]
[null,"IMIĘ I NAZWISKO",null,null,"ROLA"]
[null,"Anna Nowak",null,null,"Project Manager"]
[null,null,null,null,"Team Leader"]
[null,null,null,null,"Analityk"]
[null,null,null,null,"UX Projektant"]
[null,null,null,null,"Główny Programista PHP"]
[null,null,null,null,"Programista PHP"]
[null,null,null,null,"Programista PHP"]
[null,null,null,null,"Programista PHP"]
[null,null,null,null,"Główny Programista .Net"]
[null,null,null,null,"Programista .Net"]
[null,null,null,null,"Główny Edytor"]
[null,null,null,null,"Edytor"]

{"sheet":"Oś czasu projektu","index":2,"n_rows":30,"n_cols":6,"rows_kept":30,"cut":false,"hidden":false,"merged":[[17,2,17,4]]}
[null,"Oś czasu projektu"]
[]
[]
[]
[]
[]
[]
[]
[]
[]
[]
[]
[]
[]
[]
[]
[]
[null,null,"PUNKTY KONTROLNE PROJEKTU"]
[null,null,"DATA","PUNKT KONTROLNY","POŁOŻENIE","PLAN BAZOWY"]
[null,null,"01-04-2016","Rozpoczęcie projektu",25,{"$f":"1","v":1}]
[null,null,"30-06-2016","    Analiza i projektowanie",-10,{"$f":"1","v":1}]
[null,null,"30-07-2016","    Wdrożenie HTML",10,{"$f":"1","v":1}]
[null,null,"30-10-2016","     Etap I ",null,{"$f":"1","v":1}]
[null,null,"30-09-2016","               Implementacja",-10,{"$f":"1","v":1}]
[null,null,"10-10-2016","               Integracja ",10,{"$f":"1","v":1}]
[null,null,"30-10-2016","               Testy i stabilizacja",-10,{"$f":"1","v":1}]
[null,null,"31-12-2016","     Etap II ",null,{"$f":"1","v":1}]
[null,null,"30-11-2016","               Implementacja",10,{"$f":"1","v":1}]
[null,null,"30-12-2016","               Testy i stabilizacja",-10,{"$f":"1","v":1}]
[null,null,"31-12-2016","Wdrożenie",25,{"$f":"1","v":1}]

{"sheet":"Postęp etapów","index":3,"n_rows":15,"n_cols":7,"rows_kept":15,"cut":false,"hidden":false,"merged":[]}
[null,"Postęp prac w projekcie"]
[]
[null,"Projekt","  ","Postęp"," Rozpoczęcie"," Zakończenie","Uwagi"]
[null,"Projekt [nazwa projektu]",0.2,{"$f":"REPT(\"|\",Projekty5[[  ]]*100)","v":"||||||||||||||||||||"},null,{"$f":"'Oś czasu projektu'!C20","v":"01-04-2016"}]
[null,{"$f":"'Oś czasu projektu'!D21","v":"    Analiza i projektowanie"},1,{"$f":"REPT(\"|\",Projekty5[[  ]]*100)","v":"||||||||||||||||||||||||||||||||||||||||||||||||||||||||||||||||||||||||||||||||||||||||||||||||||||"},null,{"$f":"'Oś czasu projektu'!C21","v":"30-06-2016"}]
[null,{"$f":"'Oś czasu projektu'!D22","v":"    Wdrożenie HTML"},1,{"$f":"REPT(\"|\",Projekty5[[  ]]*100)","v":"||||||||||||||||||||||||||||||||||||||||||||||||||||||||||||||||||||||||||||||||||||||||||||||||||||"},null,{"$f":"'Oś czasu projektu'!C22","v":"30-07-2016"}]
[null,{"$f":"'Oś czasu projektu'!D23","v":"     Etap I "},0.4,{"$f":"REPT(\"|\",Projekty5[[  ]]*100)","v":"||||||||||||||||||||||||||||||||||||||||"},null,{"$f":"'Oś czasu projektu'!C23","v":"30-10-2016"}]
[null,{"$f":"'Oś czasu projektu'!D24","v":"               Implementacja"},0.5,{"$f":"REPT(\"|\",Projekty5[[  ]]*100)","v":"||||||||||||||||||||||||||||||||||||||||||||||||||"},null,{"$f":"'Oś czasu projektu'!C24","v":"30-09-2016"}]
[null,{"$f":"'Oś czasu projektu'!D25","v":"               Integracja "},0.3,{"$f":"REPT(\"|\",Projekty5[[  ]]*100)","v":"||||||||||||||||||||||||||||||"},null,{"$f":"'Oś czasu projektu'!C25","v":"10-10-2016"}]
[null,{"$f":"'Oś czasu projektu'!D26","v":"               Testy i stabilizacja"},0,{"$f":"REPT(\"|\",Projekty5[[  ]]*100)","v":""},null,{"$f":"'Oś czasu projektu'!C26","v":"30-10-2016"}]
[null,{"$f":"'Oś czasu projektu'!D27","v":"     Etap II "},0,{"$f":"REPT(\"|\",Projekty5[[  ]]*100)","v":""},null,{"$f":"'Oś czasu projektu'!C27","v":"31-12-2016"}]
[null,{"$f":"'Oś czasu projektu'!D28","v":"               Implementacja"},0,{"$f":"REPT(\"|\",Projekty5[[  ]]*100)","v":""},null,{"$f":"'Oś czasu projektu'!C28","v":"30-11-2016"}]
[null,{"$f":"'Oś czasu projektu'!D29","v":"               Testy i stabilizacja"},0,{"$f":"REPT(\"|\",Projekty5[[  ]]*100)","v":""},null,{"$f":"'Oś czasu projektu'!C29","v":"30-12-2016"}]
[null,{"$f":"'Oś czasu projektu'!D30","v":"Wdrożenie"},0,{"$f":"REPT(\"|\",Projekty5[[  ]]*100)","v":""},null,{"$f":"'Oś czasu projektu'!C30","v":"31-12-2016"}]
[null,null,null,{"$f":"REPT(\"|\",Projekty5[[  ]]*100)","v":""},null,{"$f":"'Oś czasu projektu'!C31","v":"00:00:00"}]

{"sheet":"Plan komunikacji","index":4,"n_rows":12,"n_cols":14,"rows_kept":12,"cut":false,"hidden":false,"merged":[[1,3,1,6]]}
[null,"Plan Komunikacji"]
[null,null,null,"Interesariusze"]
[null,"Rodzaj informacji","PM","Dział Sprzedaży","Interesariusz 2","Interesariusz 3","Interesariusz 4","Dokument","OZP","Cykl","Kanał komunikacji","Uwagi"]
[null,"\nZagadnienia techniczne zewnętrzne","X",null,null,null,"X","Dziennik Projektu","PM","Tygodniowy","Dziennik Projektu udostępniony na witrynie projektowej",null,null,"Dzienny"]
[null,"Zagadnienia techniczne wewnętrzne","X",null,"X",null,null,null,null,null,null,null,null,"Tygodniowy"]
[null,"Zwiększenie / zmiana zakresu","X","X","X","X","X","Lista Zmian",null,null,null,null,null,"2-tygodniowy"]
[null,"Zasoby","X","X",null,null,null,null,null,null,null,null,null,"Miesięczny"]
[null,"Wykonanie budżetu","X","X",null,null,"X","Dziennik Projektu"]
[null,"Harmonogram","X","X","X","X","X","Dziennik Projektu / Plik MPP"]
[null,"Ryzyka zewnętrzne","X","X",null,"X","X","Lista Ryzyk"]
[null,"Ryzyka wewnętrzne","X","X","X","X",null,"Lista Ryzyk"]
[null,"Postęp prac","X","X","X","X","X","Dziennik Projektu / Plik MPP"]

{"sheet":"Wykonanie budżetu","index":5,"n_rows":18,"n_cols":10,"rows_kept":18,"cut":false,"hidden":false,"merged":[]}
[null,"Wykonanie budżetu"]
[]
[null,"Tytuł faktury","Data","Kwota faktury","Faktury nar.","Budżet projektu","Budżet proj. nar.","Koszt zasobów","Koszt zasobów nar.","Rentowność"]
[null,"Faktura 1","30-04-2016",10000,{"$f":"Projekty537[[#This Row],[Kwota faktury]]","v":10000},{"$f":"Projekty537[[#This Row],[Kwota faktury]]*0.7","v":7000},{"$f":"Projekty537[[#This Row],[Budżet projektu]]","v":7000},9000,{"$f":"Projekty537[[#This Row],[Koszt zasobów]]","v":9000},{"$f":"(Projekty537[[#This Row],[Budżet proj. nar.]]-Projekty537[[#This Row],[Koszt zasobów nar.]])/Projekty537[[#This Row],[Budżet proj. nar.]]","v":-0.2857142857142857}]
[null,"Faktura 2","31-05-2016",5000,{"$f":"Projekty537[[#This Row],[Kwota faktury]]+E4","v":15000},{"$f":"Projekty537[[#This Row],[Kwota faktury]]*0.7","v":3500},{"$f":"Projekty537[[#This Row],[Budżet projektu]]+G4","v":10500},4500,{"$f":"Projekty537[[#This Row],[Koszt zasobów]]+I4","v":13500},{"$f":"(Projekty537[[#This Row],[Budżet proj. nar.]]-Projekty537[[#This Row],[Koszt zasobów nar.]])/Projekty537[[#This Row],[Budżet proj. nar.]]","v":-0.2857142857142857}]
[null,"Faktura 3","30-06-2016",5000,{"$f":"Projekty537[[#This Row],[Kwota faktury]]+E5","v":20000},{"$f":"Projekty537[[#This Row],[Kwota faktury]]*0.7","v":3500},{"$f":"Projekty537[[#This Row],[Budżet projektu]]+G5","v":14000},4000,{"$f":"Projekty537[[#This Row],[Koszt zasobów]]+I5","v":17500},{"$f":"(Projekty537[[#This Row],[Budżet projektu]]-Projekty537[[#This Row],[Koszt zasobów]])/Projekty537[[#This Row],[Budżet projektu]]","v":-0.14285714285714285}]
[null,"Faktura 4","31-07-2016",20000,{"$f":"Projekty537[[#This Row],[Kwota faktury]]+E6","v":40000},{"$f":"Projekty537[[#This Row],[Kwota faktury]]*0.7","v":14000},{"$f":"Projekty537[[#This Row],[Budżet projektu]]+G6","v":28000},10000,{"$f":"Projekty537[[#This Row],[Koszt zasobów]]+I6","v":27500},{"$f":"(Projekty537[[#This Row],[Budżet projektu]]-Projekty537[[#This Row],[Koszt zasobów]])/Projekty537[[#This Row],[Budżet projektu]]","v":0.2857142857142857}]
[null,"Faktura 5","31-08-2016",null,{"$f":"Projekty537[[#This Row],[Kwota faktury]]+E7","v":40000},{"$f":"Projekty537[[#This Row],[Kwota faktury]]*0.7","v":0},{"$f":"Projekty537[[#This Row],[Budżet projektu]]+G7","v":28000},null,{"$f":"Projekty537[[#This Row],[Koszt zasobów]]+I7","v":27500},{"$f":"(Projekty537[[#This Row],[Budżet projektu]]-Projekty537[[#This Row],[Koszt zasobów]])/Projekty537[[#This Row],[Budżet projektu]]","v":{"$error":"#DIV/0!"}}]
[null,"Faktura 6","30-09-2016",null,{"$f":"Projekty537[[#This Row],[Kwota faktury]]+E8","v":40000},{"$f":"Projekty537[[#This Row],[Kwota faktury]]*0.7","v":0},{"$f":"Projekty537[[#This Row],[Budżet projektu]]+G8","v":28000},null,{"$f":"Projekty537[[#This Row],[Koszt zasobów]]+I8","v":27500},{"$f":"(Projekty537[[#This Row],[Budżet projektu]]-Projekty537[[#This Row],[Koszt zasobów]])/Projekty537[[#This Row],[Budżet projektu]]","v":{"$error":"#DIV/0!"}}]
[null,"Faktura 7","30-10-2016",null,{"$f":"Projekty537[[#This Row],[Kwota faktury]]+E9","v":40000},{"$f":"Projekty537[[#This Row],[Kwota faktury]]*0.7","v":0},{"$f":"Projekty537[[#This Row],[Budżet projektu]]+G9","v":28000},null,{"$f":"Projekty537[[#This Row],[Koszt zasobów]]+I9","v":27500},{"$f":"(Projekty537[[#This Row],[Budżet projektu]]-Projekty537[[#This Row],[Koszt zasobów]])/Projekty537[[#This Row],[Budżet projektu]]","v":{"$error":"#DIV/0!"}}]
[null,"Faktura 8","30-11-2016",null,{"$f":"E10+Projekty537[[#This Row],[Kwota faktury]]","v":40000},{"$f":"Projekty537[[#This Row],[Kwota faktury]]*0.7","v":0},{"$f":"Projekty537[[#This Row],[Budżet projektu]]+G10","v":28000},null,{"$f":"Projekty537[[#This Row],[Koszt zasobów]]","v":0},{"$f":"(Projekty537[[#This Row],[Budżet projektu]]-Projekty537[[#This Row],[Koszt zasobów]])/Projekty537[[#This Row],[Budżet projektu]]","v":{"$error":"#DIV/0!"}}]
[null,"Faktura 9","31-12-2016",null,{"$f":"Projekty537[[#This Row],[Kwota faktury]]+E10","v":40000},{"$f":"Projekty537[[#This Row],[Kwota faktury]]*0.7","v":0},{"$f":"Projekty537[[#This Row],[Budżet projektu]]+G11","v":28000},null,{"$f":"Projekty537[[#This Row],[Koszt zasobów]]+I10","v":27500},{"$f":"(Projekty537[[#This Row],[Budżet projektu]]-Projekty537[[#This Row],[Koszt zasobów]])/Projekty537[[#This Row],[Budżet projektu]]","v":{"$error":"#DIV/0!"}}]
[null,"Total: ",null,{"$f":"SUBTOTAL(109,D5:D12)","v":30000},null,{"$f":"SUBTOTAL(109,F5:F12)","v":21000},null,{"$f":"SUBTOTAL(109,H5:H12)","v":18500},null,{"$f":"(Projekty537[[#This Row],[Budżet projektu]]-Projekty537[[#This Row],[Koszt zasobów]])/Projekty537[[#This Row],[Budżet projektu]]","v":0.11904761904761904}]
[null,null,null,null,null,{"$f":"Projekty537[[#This Row],[Kwota faktury]]*0.7","v":0}]
[null,null,null,null,null,{"$f":"Projekty537[[#This Row],[Kwota faktury]]*0.7","v":0}]
[null,null,null,null,null,{"$f":"Projekty537[[#This Row],[Kwota faktury]]*0.7","v":0}]
[null,null,null,null,null,{"$f":"Projekty537[[#This Row],[Kwota faktury]]*0.7","v":0}]
[null,null,null,null,null,{"$f":"Projekty537[[#This Row],[Kwota faktury]]*0.7","v":0}]

{"sheet":"Monitoring","index":6,"n_rows":100,"n_cols":13,"rows_kept":100,"cut":false,"hidden":false,"merged":[]}
[null,null,"Monitoring"]
[]
[null,"Project","Zadanie","Link do zadania","Wykonawca","Est. czas","Zaraport. czas","Postęp","Est. czas. na podst. Postępu","Odchylenie",null,"LEGENDA"]
[null,null,"            Zadanie 1",null,"Analityk biznesowy",50,20,0.25,{"$f":"IF(_xlfn.NUMBERVALUE(H4)=0,_xlfn.NUMBERVALUE(G4)+_xlfn.NUMBERVALUE(F4),IF(_xlfn.NUMBERVALUE(G4)=0,_xlfn.NUMBERVALUE(F4),_xlfn.NUMBERVALUE(G4)) /H4)","v":80},{"$f":"IF(_xlfn.NUMBERVALUE(F4)=0,0,(_xlfn.NUMBERVALUE(I4)-_xlfn.NUMBERVALUE(F4))/F4)","v":0.6},null,"KOLUMNA","WYJAŚNIENIE"]
[null,"x","            Zadanie 2",null,"Programista 1",20,6,0.3,{"$f":"IF(_xlfn.NUMBERVALUE(H5)=0,_xlfn.NUMBERVALUE(G5)+_xlfn.NUMBERVALUE(F5),IF(_xlfn.NUMBERVALUE(G5)=0,_xlfn.NUMBERVALUE(F5),_xlfn.NUMBERVALUE(G5)) /H5)","v":20},{"$f":"(I5-F5)/F5","v":0},null,"Zadanie","Nazwa zadania z WBS (WBS - struktura podziału pracy)"]
[null,"x","            Zadanie 3",null,"Programista 2",40,6,0.05,120,{"$f":"(I6-F6)/F6","v":2},null,"Link do zadania","Odnośnik do zadania (jeśli istnieje)"]
[null,null,"            Zadanie 4",null,"Programista 1",80,90,0.9,100,{"$f":"IF(_xlfn.NUMBERVALUE(F7)=0,0,(_xlfn.NUMBERVALUE(I7)-_xlfn.NUMBERVALUE(F7))/F7)","v":0.25},null,"Wykonawca","Osoba realizująca zadanie"]
[null,"x","            Zadanie 5",null,"Programista 2",10,8,1,8,-0.2,null,"Est. czas","Planowany czas wykonania zadania"]
[null,"x","            Zadanie 6",null,"Programista 3",50,55,1,55,0.1,null,"Zarapor. czas","Dotychczas zaraportowany czas na wykonania zadania"]
[null,null,"            Zadanie 7",null,"Programista 2",20,25,0.6,41.666666666666671,1.083333333333335,null,"Postęp","Postęp procentowy zadania"]
[null,"x","            Zadanie 8",null,"Programista 3",30,55,0.9,61.111111111111107,1.0370370370370368,null,"Est. czas. na podst. postępu","Estymowany łączny czas na wykonanie zadania na podstawie dotychczas zaraportowanego czasu i postępu (Zaraport. czas / Postęp)"]
[null,"x","            Zadanie 9",null,"Programista 2",50,6,0.3,20,-0.6,null,"Odchylenie","Odchylenie powyżej / poniżej wartości planowanej (Est. czas)"]
[null,"x","            Zadanie 10",null,"Tester",100,30,0.2,150,0.5]
[null,"x",null,null,null,null,null,null,{"$f":"IF(_xlfn.NUMBERVALUE(H14)=0,_xlfn.NUMBERVALUE(G14)+_xlfn.NUMBERVALUE(F14),IF(_xlfn.NUMBERVALUE(G14)=0,_xlfn.NUMBERVALUE(F14),_xlfn.NUMBERVALUE(G14)) /H14)","v":0},{"$f":"IF(_xlfn.NUMBERVALUE(F14)=0,0,(_xlfn.NUMBERVALUE(I14)-_xlfn.NUMBERVALUE(F14))/F14)","v":0},null,"REGUŁY"]
[null,"x",null,null,null,null,null,null,{"$f":"IF(_xlfn.NUMBERVALUE(H15)=0,_xlfn.NUMBERVALUE(G15)+_xlfn.NUMBERVALUE(F15),IF(_xlfn.NUMBERVALUE(G15)=0,_xlfn.NUMBERVALUE(F15),_xlfn.NUMBERVALUE(G15)) /H15)","v":0},{"$f":"IF(_xlfn.NUMBERVALUE(F15)=0,0,(_xlfn.NUMBERVALUE(I15)-_xlfn.NUMBERVALUE(F15))/F15)","v":0},null,"KOLOR","WYJAŚNIENIE"]
[null,"x",null,null,null,null,null,null,0,0,null,"Zaraport. czas","jeśli dotychczas zaraportowany na zadanie czas jest mniejszy lub równy wartości estymowanej (Est. czas)"]
[null,null,null,null,null,null,null,null,0,0,null,"Zaraport. Czas","jeśli dotychczas zaraportowany na zadanie czas jest więszy niż wartość estymowana (Est. czas) oraz jest mniejszy niż 130% tej wartości "]
[null,null,null,null,null,null,null,null,0,0,null,"Zaraport. czas","jeśli dotychczas zaraportowany na zadanie czas jest więszy lub równy 130% wartości estymowanej (Est. czas)"]
[null,"x",null,null,null,null,null,null,0,0]
[null,"x",null,null,null,null,null,null,0,0,null,"Est. czas","jeśli estymowany łączny czas na wykonanie zadania jest mniejszy lub równy wartości estymowanej (Est. czas)"]
[null,"x",null,null,null,null,null,null,0,0,null,"Est. Czas","jeśli estymowany łączny czas na wykonanie zadania jest więszy niż wartość estymowana (Est. czas) oraz jest mniejszy niż 130% tej wartości "]
[null,"x",null,null,null,null,null,null,0,0,null,"Est. czas","jeśli estymowany łączny czas na wykonanie zadania jest większy lub równy 130% wartości estymowanej (Est. czas)"]
[null,"x",null,null,null,null,null,null,0,0]
[null,"x",null,null,null,null,null,null,0,0]
[null,"x",null,null,null,null,null,null,0,0]
[null,"x",null,null,null,null,null,null,0,0]
[null,null,null,null,null,null,null,null,0,0]
[null,null,null,null,null,null,null,null,0,0]
[null,"x",null,null,null,null,null,null,0,0]
[null,"x",null,null,null,null,null,null,0,0]
[null,"x",null,null,null,null,null,null,0,0]
[null,"x",null,null,null,null,null,null,0,0]
[null,"x",null,null,null,null,null,null,0,0]
[null,null,null,null,null,null,null,null,0,0]
[null,"x",null,null,null,null,null,null,0,0]
[null,"x",null,null,null,null,null,null,0,0]
[null,null,null,null,null,null,null,null,0,0]
[null,"x",null,null,null,null,null,null,0,0]
[null,"x",null,null,null,null,null,null,0,0]
[null,"x",null,null,null,null,null,null,0,0]
[null,null,null,null,null,null,null,null,0,0]
[null,"x",null,null,null,null,null,null,0,0]
[null,"x",null,null,null,null,null,null,0,0]
[null,"x",null,null,null,null,null,null,0,0]
[null,"x",null,null,null,null,null,null,0,0]
[null,"x",null,null,null,null,null,null,0,0]
[null,"x",null,null,null,null,null,null,0,0]
[null,"x",null,null,null,null,null,null,0,0]
[null,"x",null,null,null,null,null,null,0,0]
[null,"x",null,null,null,null,null,null,0,0]
[null,"x",null,null,null,null,null,null,0,0]
[null,"x",null,null,null,null,null,null,0,0]
[null,null,null,null,null,null,null,null,0,0]
[null,null,null,null,null,null,null,null,0,0]
[null,null,null,null,null,null,null,null,0,0]
[null,"x",null,null,null,null,null,null,0,0]
[null,null,null,null,null,null,null,null,0,0]
[null,"x",null,null,null,null,null,null,0,0]
[null,"x",null,null,null,null,null,null,0,0]
[null,"x",null,null,null,null,null,null,0,0]
[null,"x",null,null,null,null,null,null,0,0]
[null,"x",null,null,null,null,null,null,0,0]
[null,"x",null,null,null,null,null,null,0,0]
[null,"x",null,null,null,null,null,null,0,0]
[null,"x",null,null,null,null,null,null,0,0]
[null,null,null,null,null,null,null,null,0,0]
[null,"x",null,null,null,null,null,null,0,0]
[null,"x",null,null,null,null,null,null,0,0]
[null,"x",null,null,null,null,null,null,0,0]
[null,null,null,null,null,null,null,null,0,0]
[null,"x",null,null,null,null,null,null,0,0]
[null,null,null,null,null,null,null,null,0,0]
[null,"x",null,null,null,null,null,null,0,0]
[null,"x",null,null,null,null,null,null,0,0]
[null,"x",null,null,null,null,null,null,0,0]
[null,null,null,null,null,null,null,null,0,0]
[null,"x",null,null,null,null,null,null,0,0]
[null,null,null,null,null,null,null,null,0,0]
[null,null,null,null,null,null,null,null,{"$f":"IF(_xlfn.NUMBERVALUE(H79)=0,_xlfn.NUMBERVALUE(G79)+_xlfn.NUMBERVALUE(F79),IF(_xlfn.NUMBERVALUE(G79)=0,_xlfn.NUMBERVALUE(F79),_xlfn.NUMBERVALUE(G79)) /H79)","v":0},{"$f":"IF(_xlfn.NUMBERVALUE(F79)=0,0,(_xlfn.NUMBERVALUE(I79)-_xlfn.NUMBERVALUE(F79))/F79)","v":0}]
[null,"x",null,null,null,null,null,null,0,0]
[null,"x",null,null,null,null,null,null,0,0]
[null,"x",null,null,null,null,null,null,0,0]
[null,"x",null,null,null,null,null,null,0,0]
[null,null,null,null,null,null,null,null,0,0]
[null,null,null,null,null,null,null,null,0,0]
[null,"x",null,null,null,null,null,null,0,0]
[null,"x",null,null,null,null,null,null,0,0]
[null,"x",null,null,null,null,null,null,0,0]
[null,"x",null,null,null,null,null,null,0,0]
[null,"x",null,null,null,null,null,null,0,0]
[null,"x",null,null,null,null,null,null,0,0]
[null,"x",null,null,null,null,null,null,0,0]
[null,"x",null,null,null,null,null,null,0,0]
[null,null,null,null,null,null,null,null,0,0]
[null,"x",null,null,null,null,null,null,0,0]
[null,null,null,null,null,null,null,null,0,0]
[null,"x",null,null,null,null,null,null,0,0]
[null,"x",null,null,null,null,null,null,0,0]
[null,null,null,null,null,null,null,null,0,0]
[null,"x",null,null,null,null,null,null,0,0]

{"sheet":"Dziennik","index":7,"n_rows":122,"n_cols":6,"rows_kept":122,"cut":false,"hidden":false,"merged":[[66,1,73,1],[106,1,113,1],[106,2,113,2],[106,3,113,3],[1,1,1,2],[50,1,57,1],[50,2,57,2],[50,3,57,3],[58,2,65,2],[58,3,65,3],[58,1,65,1],[66,2,73,2],[66,3,73,3],[74,1,81,1],[82,1,89,1],[90,1,97,1],[114,1,121,1],[114,2,121,2],[114,3,121,3],[98,3,105,3],[98,2,105,2],[98,1,105,1],[74,2,81,2],[74,3,81,3],[82,3,89,3],[82,2,89,2],[90,2,97,2],[90,3,97,3],[34,1,41,1],[34,2,41,2],[34,3,41,3],[42,1,49,1],[42,2,49,2],[42,3,49,3],[18,1,25,1],[18,2,25,2],[18,3,25,3],[26,1,33,1],[26,2,33,2],[26,3,33,3],[3,1,10,1],[3,2,10,2],[3,3,10,3],[11,1,17,1],[11,2,17,2],[11,3,17,3]]}
[null,"Dziennik projektu"]
[null,"Dzień startu - 1 tydzień:",null,{"$f":"DATEVALUE(\"2016-03-28\")","v":"2016-03-28"}]
[null,"Tydzień","Miesiąc","Data","Rodzaj informacji","Opis"]
[null,1,{"$f":"D4","v":"2016-04-04"},{"$f":"DATE(YEAR($D$2+B4*7),MONTH($D$2+B4*7),DAY($D$2+B4*7))","v":"2016-04-04"},"Postęp projektu","Wartość liczbowa wyrażona w procentach."]
[null,null,null,null,"Status projektu","Opis słowny postępu w projekcie."]
[null,null,null,null,"Nadchodzące terminy","Należy uzupęłnić, jeśli zostały zaplanowane np. terminy odbioru etapów, spotkania, daty podjęcia określonych działań. Format: data - wydarzenie"]
[null,null,null,null,"Zasoby ","Sytuacja dotycząca zasobów zarówno ludzkich, jak i sprzętowych (niedobory, nadmierne alokacje itp.)"]
[null,null,null,null,"Zmiany ","Należy uzupełnić, jeśli zostały zgłoszone."]
[null,null,null,null,"Ryzyka i reakcje ","Należy uzupełnić, jeśli zostały zgłoszone."]
[null,null,null,null,"Testy","Jeśli się rozpoczęły, należy opisać ich status."]
[null,null,null,null,"Współpraca z podwykonawcami","Opis słowny dotyczący współpracy (relacji, wywiązaywania się ze zeobowiązań itp.)"]
[null,2,{"$f":"D12","v":"2016-04-11"},{"$f":"DATE(YEAR($D$2+B12*7),MONTH($D$2+B12*7),DAY($D$2+B12*7))","v":"2016-04-11"},"Postęp "]
[null,null,null,null,"Status projektu"]
[null,null,null,null,"Nadchodzące terminy"]
[null,null,null,null,"Zasoby "]
[null,null,null,null,"Zmiany "]
[null,null,null,null,"Ryzyka i reakcje "]
[null,null,null,null,"Współpraca z UC4"]
[null,3,"2016-04-18",{"$f":"DATE(YEAR($D$2+B19*7),MONTH($D$2+B19*7),DAY($D$2+B19*7))","v":"2016-04-18"},"Postęp "]
[null,null,null,null,"Status projektu"]
[null,null,null,null,"Nadchodzące terminy"]
[null,null,null,null,"Zasoby "]
[null,null,null,null,"Zmiany "]
[null,null,null,null,"Ryzyka i reakcje "]
[null,null,null,null,"Testy"]
[null,null,null,null,"Współpraca z podwykonawcami"]
[null,4,"2016-04-25",{"$f":"DATE(YEAR($D$2+B27*7),MONTH($D$2+B27*7),DAY($D$2+B27*7))","v":"2016-04-25"},"Postęp "]
[null,null,null,null,"Status projektu"]
[null,null,null,null,"Nadchodzące terminy"]
[null,null,null,null,"Zasoby "]
[null,null,null,null,"Zmiany "]
[null,null,null,null,"Ryzyka i reakcje "]
[null,null,null,null,"Testy"]
[null,null,null,null,"Współpraca z podwykonawcami"]
[null,5,"2016-05-02",{"$f":"DATE(YEAR($D$2+B35*7),MONTH($D$2+B35*7),DAY($D$2+B35*7))","v":"2016-05-02"},"Postęp "]
[null,null,null,null,"Status projektu"]
[null,null,null,null,"Nadchodzące terminy"]
[null,null,null,null,"Zasoby "]
[null,null,null,null,"Zmiany "]
[null,null,null,null,"Ryzyka i reakcje "]
[null,null,null,null,"Testy"]
[null,null,null,null,"Współpraca z podwykonawcami"]
[null,6,"2016-05-09",{"$f":"DATE(YEAR($D$2+B43*7),MONTH($D$2+B43*7),DAY($D$2+B43*7))","v":"2016-05-09"},"Postęp "]
[null,null,null,null,"Status projektu"]
[null,null,null,null,"Nadchodzące terminy"]
[null,null,null,null,"Zasoby "]
[null,null,null,null,"Zmiany "]
[null,null,null,null,"Ryzyka i reakcje "]
[null,null,null,null,"Testy"]
[null,null,null,null,"Współpraca z podwykonawcami"]
[null,7,{"$f":"D51","v":"2016-05-16"},{"$f":"DATE(YEAR($D$2+B51*7),MONTH($D$2+B51*7),DAY($D$2+B51*7))","v":"2016-05-16"},"Postęp "]
[null,null,null,null,"Status projektu"]
[null,null,null,null,"Nadchodzące terminy"]
[null,null,null,null,"Zasoby "]
[null,null,null,null,"Zmiany "]
[null,null,null,null,"Ryzyka i reakcje "]
[null,null,null,null,"Testy"]
[null,null,null,null,"Współpraca z podwykonawcami"]
[null,8,{"$f":"D59","v":"2016-05-23"},"2016-05-23","Postęp "]
[null,null,null,null,"Status projektu"]
[null,null,null,null,"Nadchodzące terminy"]
[null,null,null,null,"Zasoby "]
[null,null,null,null,"Zmiany "]
[null,null,null,null,"Ryzyka i reakcje "]
[null,null,null,null,"Testy"]
[null,null,null,null,"Współpraca z podwykonawcami"]
[null,9,{"$f":"D67","v":"2016-05-30"},"2016-05-30","Postęp "]
[null,null,null,null,"Status projektu"]
[null,null,null,null,"Nadchodzące terminy"]
[null,null,null,null,"Zasoby "]
[null,null,null,null,"Zmiany "]
[null,null,null,null,"Ryzyka i reakcje "]
[null,null,null,null,"Testy"]
[null,null,null,null,"Współpraca z podwykonawcami"]
[null,10,{"$f":"D75","v":"2016-06-06"},"2016-06-06","Postęp "]
[null,null,null,null,"Status projektu"]
[null,null,null,null,"Nadchodzące terminy"]
[null,null,null,null,"Zasoby "]
[null,null,null,null,"Zmiany "]
[null,null,null,null,"Ryzyka i reakcje "]
[null,null,null,null,"Testy"]
[null,null,null,null,"Współpraca z podwykonawcami"]
[null,11,{"$f":"D83","v":"2016-06-13"},{"$f":"DATE(YEAR($D$2+B83*7),MONTH($D$2+B83*7),DAY($D$2+B83*7))","v":"2016-06-13"},"Postęp "]
[null,null,null,null,"Status projektu"]
[null,null,null,null,"Nadchodzące terminy"]
[null,null,null,null,"Zasoby "]
[null,null,null,null,"Zmiany "]
[null,null,null,null,"Ryzyka i reakcje "]
[null,null,null,null,"Testy"]
[null,null,null,null,"Współpraca z podwykonawcami"]
[null,12,{"$f":"D91","v":"2016-06-20"},{"$f":"DATE(YEAR($D$2+B91*7),MONTH($D$2+B91*7),DAY($D$2+B91*7))","v":"2016-06-20"},"Postęp "]
[null,null,null,null,"Status projektu"]
[null,null,null,null,"Nadchodzące terminy"]
[null,null,null,null,"Zasoby "]
[null,null,null,null,"Zmiany "]
[null,null,null,null,"Ryzyka i reakcje "]
[null,null,null,null,"Testy"]
[null,null,null,null,"Współpraca z podwykonawcami"]
[null,13,{"$f":"D99","v":"2016-06-27"},{"$f":"DATE(YEAR($D$2+B99*7),MONTH($D$2+B99*7),DAY($D$2+B99*7))","v":"2016-06-27"},"Postęp "]
[null,null,null,null,"Status projektu"]
[null,null,null,null,"Nadchodzące terminy"]
[null,null,null,null,"Zasoby "]
[null,null,null,null,"Zmiany "]
[null,null,null,null,"Ryzyka i reakcje "]
[null,null,null,null,"Testy"]
[null,null,null,null,"Współpraca z podwykonawcami"]
[null,14,{"$f":"D107","v":"2016-07-04"},{"$f":"DATE(YEAR($D$2+B107*7),MONTH($D$2+B107*7),DAY($D$2+B107*7))","v":"2016-07-04"},"Postęp "]
[null,null,null,null,"Status projektu"]
[null,null,null,null,"Nadchodzące terminy"]
[null,null,null,null,"Zasoby "]
[null,null,null,null,"Zmiany "]
[null,null,null,null,"Ryzyka i reakcje "]
[null,null,null,null,"Testy"]
[null,null,null,null,"Współpraca z podwykonawcami"]
[null,15,{"$f":"D115","v":"2016-07-11"},{"$f":"DATE(YEAR($D$2+B115*7),MONTH($D$2+B115*7),DAY($D$2+B115*7))","v":"2016-07-11"},"Postęp "]
[null,null,null,null,"Status projektu"]
[null,null,null,null,"Nadchodzące terminy"]
[null,null,null,null,"Zasoby "]
[null,null,null,null,"Zmiany "]
[null,null,null,null,"Ryzyka i reakcje "]
[null,null,null,null,"Testy"]
[null,null,null,null,"Współpraca z podwykonawcami"]

{"sheet":"Lista ryzyk","index":8,"n_rows":25,"n_cols":17,"rows_kept":25,"cut":false,"hidden":false,"merged":[[3,12,5,12],[7,14,8,16]]}
[null,"Lista ryzyk"]
[]
[null,"Ryzyko","Opis","Autor zgłoszenia","Data zgłoszenia","Wpływ na projekt","Prawdopodobieństwo wystąpienia","Ocena ryzyka","Reakcja na ryzyko","Data zamknięcia","Uwagi"]
[null,"Ryzyko 1","Lorem ipsum dolor sit amet enim. Etiam ullamcorper. Suspendisse a pellentesque dui, non felis. ","Jan Kowalski",42464,"niski","niskie","A","akceptacja",42471,"Lorem ipsum dolor sit amet enim. Etiam ullamcorper. Suspendisse a pellentesque dui, non felis. ",null,"Wpływ na projekt","Wysoki","C","D","E"]
[null,null,null,null,null,null,null,"B",null,null,null,null,null,"Średni","B","C","D"]
[null,null,null,null,null,null,null,"C",null,null,null,null,null,"Niski","A","B","C"]
[null,null,null,null,null,null,null,"D",null,null,null,null,null,null,"Niskie","Średnie","Wysokie"]
[null,null,null,null,null,null,null,"E",null,null,null,null,null,null,"Prawdopodobieństwo wystąpienia"]
[]
[null,null,null,null,null,null,null,null,null,null,null,null,null,"A"]
[null,null,null,null,null,null,null,null,null,null,null,null,"unikanie","B"]
[null,null,null,null,null,null,null,null,null,null,null,null,"redukowanie","C"]
[null,null,null,null,null,null,null,null,null,null,null,null,"przeniesienie","D"]
[null,null,null,null,null,null,null,null,null,null,null,null,"współdzielenie","E"]
[null,null,null,null,null,null,null,null,null,null,null,null,"akceptacja"]
[]
[]
[null,null,null,null,null,null,null,null,null,null,null,null,"niski"]
[null,null,null,null,null,null,null,null,null,null,null,null,"średni"]
[null,null,null,null,null,null,null,null,null,null,null,null,"wysoki"]
[]
[]
[null,null,null,null,null,null,null,null,null,null,null,null,"niskie"]
[null,null,null,null,null,null,null,null,null,null,null,null,"średnie"]
[null,null,null,null,null,null,null,null,null,null,null,null,"wysokie"]

{"sheet":"Lista zmian","index":9,"n_rows":13,"n_cols":13,"rows_kept":13,"cut":false,"hidden":false,"merged":[]}
[null,"Lista zmian"]
[]
[null,"Zmiana","Opis","Autor zmiany","Data zgłoszenia","Wpływ na projekt","Wpływ na harmonogram","Wpływ na budżet","Status zmiany","Data zamknięcia","Uwagi"]
[null,"Zmiana 1","Lorem ipsum dolor sit amet enim. Etiam ullamcorper. Suspendisse a pellentesque dui, non felis. ","Jan Kowalski","2016-04-04","niski","1 dzień",1000,"odrzucona","2016-04-11","Lorem ipsum dolor sit amet enim. Etiam ullamcorper. Suspendisse a pellentesque dui, non felis. ",null,"nowa"]
[null,null,null,null,null,null,null,null,null,null,null,null,"nierozpoczęta"]
[null,null,null,null,null,null,null,null,null,null,null,null,"w toku"]
[null,null,null,null,null,null,null,null,null,null,null,null,"odrzucona"]
[null,null,null,null,null,null,null,null,null,null,null,null,"wykonana"]
[]
[]
[null,null,null,null,null,null,null,null,null,null,null,null,"niski"]
[null,null,null,null,null,null,null,null,null,null,null,null,"średni"]
[null,null,null,null,null,null,null,null,null,null,null,null,"wysoki"]

{"sheet":"Zadania do wykonania","index":10,"n_rows":13,"n_cols":12,"rows_kept":13,"cut":false,"hidden":false,"merged":[]}
[null,"Lista zadań do wykonania w projekcie"]
[]
[null,"Zadanie","Opis","Data zgłoszenia","Priorytet","Właściciel zadania","Termin wykonania","Status zadania","Data zamknięcia","Uwagi"]
[null,"Zadanie 1","Lorem ipsum dolor sit amet enim. Etiam ullamcorper. Suspendisse a pellentesque dui, non felis. ","2016-04-04","wysoki","Adam Nowak","2016-04-11","w toku",null,"Lorem ipsum dolor sit amet enim. Etiam ullamcorper. Suspendisse a pellentesque dui, non felis. "]
[null,null,null,null,null,null,null,null,null,null,null,"nowe"]
[null,null,null,null,null,null,null,null,null,null,null,"przyjęte"]
[null,null,null,null,null,null,null,null,null,null,null,"w toku"]
[null,null,null,null,null,null,null,null,null,null,null,"odrzucone"]
[null,null,null,null,null,null,null,null,null,null,null,"wykonane"]
[]
[null,null,null,null,null,null,null,null,null,null,null,"niski"]
[null,null,null,null,null,null,null,null,null,null,null,"średni"]
[null,null,null,null,null,null,null,null,null,null,null,"wysoki"]

{"sheet":"Zagadnienia projektowe","index":11,"n_rows":19,"n_cols":12,"rows_kept":19,"cut":false,"hidden":false,"merged":[]}
[null,"Zagadnienia projektowe"]
[]
[null,"Zagadnienie","Opis","Typ zagadnienia","Autor zgłoszenia","Data zgłoszenia","Wpływ na projekt","Status zagadnienia","Data zamknięcia","Uwagi"]
[null,"Zagadnienie 1","Lorem ipsum dolor sit amet enim. Etiam ullamcorper. Suspendisse a pellentesque dui, non felis. ","wsparcie","Jan Kowalski","2016-04-04","średni","wykonane","2016-04-11","Lorem ipsum dolor sit amet enim. Etiam ullamcorper. Suspendisse a pellentesque dui, non felis. ",null,"nowe"]
[null,null,null,null,null,null,null,null,null,null,null,"przyjęte"]
[null,null,null,null,null,null,null,null,null,null,null,"w toku"]
[null,null,null,null,null,null,null,null,null,null,null,"odrzucone"]
[null,null,null,null,null,null,null,null,null,null,null,"wykonane"]
[]
[]
[null,null,null,null,null,null,null,null,null,null,null,"wsparcie"]
[null,null,null,null,null,null,null,null,null,null,null,"odstępstwo"]
[null,null,null,null,null,null,null,null,null,null,null,"problem / obawa"]
[null,null,null,null,null,null,null,null,null,null,null,"inne"]
[]
[]
[null,null,null,null,null,null,null,null,null,null,null,"niski"]
[null,null,null,null,null,null,null,null,null,null,null,"średni"]
[null,null,null,null,null,null,null,null,null,null,null,"wysoki"]

{"sheet":"Aktualizacje","index":12,"n_rows":19,"n_cols":6,"rows_kept":19,"cut":false,"hidden":false,"merged":[]}
[null,"Aktualizacje Dziennika Projektu"]
[]
[null,"Wersja","Data aktualizacji","Zmiany w najnowszej wersji"]
[null,"1.0","2016-04-04","Opublikowanie wersji 1.0 Dziennika Projektu",null,"nowe"]
[null,"1.1","2016-05-04","1. Poprawione zostały formuły w arkuszu \"Monitoring\" - kolumny I oraz J są \"odporne\" na wartość 0\n2. Do arkusza \"Dziennik projektu\" została wprwadzona funkcja automatycznego dodawania kolejnych tygodni\n3. W arkuszach: \"Lista ryzyk\", \"Lista zmian\", \"Zadania do wykonania\", \"Zagadnienia projektowe\" zostały dodane nowe kolumny\n4. Nazwa arkusza \"Przegląd dokumentów\" została zmieniona na \"Przegląd arkuszy\"\n5. Wprowadzone zostały drobne zmiany wizualne (kolorystyczne, szerokości kolumn etc.)\n6. Do wybranych nagłówków kolumn dodane zostały komentarze\n7. Do wybranych arkuszy dodane zostały przykładowe dane\n8. Dodany został arkusz \"Aktualizacje\"",null,"przyjęte"]
[null,null,null,null,null,"w toku"]
[null,null,null,null,null,"odrzucone"]
[null,null,null,null,null,"wykonane"]
[]
[]
[null,null,null,null,null,"wsparcie"]
[null,null,null,null,null,"odstępstwo"]
[null,null,null,null,null,"problem / obawa"]
[null,null,null,null,null,"inne"]
[]
[]
[null,null,null,null,null,"niski"]
[null,null,null,null,null,"średni"]
[null,null,null,null,null,"wysoki"]